[Event "December 5 Late 2023"]
[Site "https://www.chess.com"]
[Date "2023.12.05"]
[Round "11"]
[White "De Souza, Cristiano Gomes"]
[Black "Figorito, Nick"]
[Result "0-1"]
[Board "86"]
[TimeControl "180+1"]
[WhiteFideId "2151758"]
[BlackFideId "30923689"]
[WhiteElo "2240"]
[BlackElo "2367"]
[WhiteTeam "BRA"]
[BlackTeam "USA"]
[WhiteClock "0:00:32"]
[BlackClock "0:00:17"]

1. d4 {[%clk 0:02:57]}  Nf6 {[%clk 0:03:00]} 2. c4 {[%clk 0:02:57]}  g6 {[%clk 0:03:00]} 3. Nf3 {[%clk 0:02:57]}  Bg7 {[%clk 0:03:00]} 4. Nc3 {[%clk 0:02:57]}  d5 {[%clk 0:03:00]} 5. Bf4 {[%clk 0:02:57]}  O-O {[%clk 0:03:00]} 6. e3 {[%clk 0:02:57]}  c5 {[%clk 0:03:00]} 7. dxc5 {[%clk 0:02:56]}  Qa5 {[%clk 0:03:01]} 8. Rc1 {[%clk 0:02:56]}  dxc4 {[%clk 0:03:01]} 9. Bxc4 {[%clk 0:02:55]}  Qxc5 {[%clk 0:03:01]} 10. Nb5 {[%clk 0:02:56]}  Qb4+ {[%clk 0:02:56]} 11. Kf1 {[%clk 0:02:55]}  Na6 {[%clk 0:02:49]} 12. a3 {[%clk 0:02:52]}  Qa5 {[%clk 0:02:43]} 13. Nc7 {[%clk 0:02:49]}  Nxc7 {[%clk 0:02:35]} 14. Bxc7 {[%clk 0:02:41]}  Qh5 {[%clk 0:02:29]} 15. Be2 {[%clk 0:02:39]}  Bg4 {[%clk 0:02:26]} 16. h3 {[%clk 0:02:39]}  Rac8 {[%clk 0:02:11]} 17. Kg1 {[%clk 0:02:30]}  Bd7 {[%clk 0:01:50]} 18. Ne5 {[%clk 0:02:16]}  Qf5 {[%clk 0:01:41]} 19. g4 {[%clk 0:02:12]}  Qe4 {[%clk 0:00:43]} 20. Bf3 {[%clk 0:02:12]}  Qa4 {[%clk 0:00:40]} 21. b3 {[%clk 0:02:03]}  Qxa3 {[%clk 0:00:32]} 22. Bxb7 {[%clk 0:01:59]}  Be6 {[%clk 0:00:21]} 23. Bxc8 {[%clk 0:01:51]}  Rxc8 {[%clk 0:00:22]} 24. Kg2 {[%clk 0:01:43]}  Bxb3 {[%clk 0:00:17]} 25. Qd3 {[%clk 0:01:35]}  Bd5+ {[%clk 0:00:15]} 26. f3 {[%clk 0:01:33]}  Qxd3 {[%clk 0:00:12]} 27. Nxd3 {[%clk 0:01:32]}  Ne8 {[%clk 0:00:08]} 28. Ba5 {[%clk 0:01:29]}  Ra8 {[%clk 0:00:08]} 29. e4 {[%clk 0:01:27]}  Bb7 {[%clk 0:00:07]} 30. Nc5 {[%clk 0:01:26]}  Bc6 {[%clk 0:00:07]} 31. Rhd1 {[%clk 0:01:24]}  Bb5 {[%clk 0:00:06]} 32. Bc3 {[%clk 0:01:23]}  Nd6 {[%clk 0:00:05]} 33. Bxg7 {[%clk 0:01:19]}  Kxg7 {[%clk 0:00:06]} 34. e5 {[%clk 0:01:19]}  Nc4 {[%clk 0:00:06]} 35. Ne4 {[%clk 0:01:16]}  Ne3+ {[%clk 0:00:06]} 36. Kf2 {[%clk 0:01:16]}  Nxd1+ {[%clk 0:00:07]} 37. Rxd1 {[%clk 0:01:17]}  a5 {[%clk 0:00:08]} 38. Ra1 {[%clk 0:01:16]}  a4 {[%clk 0:00:08]} 39. Nc3 {[%clk 0:01:16]}  Bd7 {[%clk 0:00:07]} 40. f4 {[%clk 0:01:15]}  a3 {[%clk 0:00:07]} 41. Ke3 {[%clk 0:01:15]}  Be6 {[%clk 0:00:07]} 42. Kd4 {[%clk 0:01:12]}  a2 {[%clk 0:00:07]} 43. Ke4 {[%clk 0:01:10]}  Rc8 {[%clk 0:00:07]} 44. Kd3 {[%clk 0:01:05]}  Rd8+ {[%clk 0:00:06]} 45. Ke3 {[%clk 0:01:04]}  Rb8 {[%clk 0:00:06]} 46. Ke4 {[%clk 0:01:01]}  Rb2 {[%clk 0:00:06]} 47. f5 {[%clk 0:01:00]}  Bb3 {[%clk 0:00:05]} 48. Kd4 {[%clk 0:00:56]}  Rh2 {[%clk 0:00:05]} 49. fxg6 {[%clk 0:00:53]}  hxg6 {[%clk 0:00:05]} 50. Kc5 {[%clk 0:00:53]}  Rxh3 {[%clk 0:00:05]} 51. Kb4 {[%clk 0:00:52]}  Be6 {[%clk 0:00:05]} 52. Nxa2 {[%clk 0:00:51]}  Bxa2 {[%clk 0:00:04]} 53. Rxa2 {[%clk 0:00:51]}  Rg3 {[%clk 0:00:05]} 54. Kc5 {[%clk 0:00:50]}  Rxg4 {[%clk 0:00:06]} 55. Kd5 {[%clk 0:00:50]}  Rf4 {[%clk 0:00:06]} 56. Ra7 {[%clk 0:00:49]}  e6+ {[%clk 0:00:07]} 57. Kd6 {[%clk 0:00:49]}  g5 {[%clk 0:00:08]} 58. Ra3 {[%clk 0:00:48]}  g4 {[%clk 0:00:08]} 59. Rg3 {[%clk 0:00:48]}  Kg6 {[%clk 0:00:08]} 60. Ke7 {[%clk 0:00:48]}  Kf5 {[%clk 0:00:07]} 61. Kxf7 {[%clk 0:00:48]}  Kxe5+ {[%clk 0:00:07]} 62. Kg6 {[%clk 0:00:48]}  Ke4 {[%clk 0:00:08]} 63. Kh5 {[%clk 0:00:47]}  e5 {[%clk 0:00:08]} 64. Rxg4 {[%clk 0:00:47]}  Rxg4 {[%clk 0:00:08]} 65. Kxg4 {[%clk 0:00:47]}  Ke3 {[%clk 0:00:08]} 66. Kg3 {[%clk 0:00:47]}  e4 {[%clk 0:00:08]} 67. Kg2 {[%clk 0:00:48]}  Kd2 {[%clk 0:00:08]} 68. Kf1 {[%clk 0:00:48]}  e3 {[%clk 0:00:09]} 69. Kg2 {[%clk 0:00:47]}  e2 {[%clk 0:00:10]} 70. Kf3 {[%clk 0:00:48]}  e1=Q {[%clk 0:00:11]} 71. Kf4 {[%clk 0:00:48]}  Qe2 {[%clk 0:00:12]} 72. Kf5 {[%clk 0:00:48]}  Qe3 {[%clk 0:00:12]} 73. Kf6 {[%clk 0:00:47]}  Qe4 {[%clk 0:00:13]} 74. Kg5 {[%clk 0:00:47]}  Qf3 {[%clk 0:00:13]} 75. Kg6 {[%clk 0:00:47]}  Qf4 {[%clk 0:00:13]} 76. Kh5 {[%clk 0:00:47]}  Qg3 {[%clk 0:00:14]} 77. Kh6 {[%clk 0:00:47]}  Kd3 {[%clk 0:00:15]} 78. Kh7 {[%clk 0:00:47]}  Kd4 {[%clk 0:00:16]} 79. Kh6 {[%clk 0:00:39]}  Kd5 {[%clk 0:00:17]} 80. Kh5 {[%clk 0:00:38]}  Ke6 {[%clk 0:00:16]} 81. Kh6 {[%clk 0:00:32]}  Kf6 {[%clk 0:00:17]} 0-1

[Event "December 5 Late 2023"]
[Site "https://www.chess.com"]
[Date "2023.12.05"]
[Round "11"]
[White "Clawitter, Craig"]
[Black "Akhayan, Ruben"]
[Result "1-0"]
[Board "87"]
[TimeControl "180+1"]
[WhiteFideId "2023105"]
[BlackFideId "204439"]
[WhiteElo "2231"]
[BlackElo "2366"]
[WhiteTeam "USA"]
[BlackTeam "BEL"]
[WhiteClock "0:00:02"]
[BlackClock "0:00:12"]

1. e4 {[%clk 0:02:54]}  e5 {[%clk 0:02:59]} 2. Nf3 {[%clk 0:02:54]}  Nc6 {[%clk 0:03:00]} 3. Bb5 {[%clk 0:02:54]}  a6 {[%clk 0:02:59]} 4. Ba4 {[%clk 0:02:55]}  Nf6 {[%clk 0:02:59]} 5. O-O {[%clk 0:02:54]}  Be7 {[%clk 0:02:59]} 6. d3 {[%clk 0:02:54]}  b5 {[%clk 0:02:59]} 7. Bb3 {[%clk 0:02:55]}  O-O {[%clk 0:03:00]} 8. Nc3 {[%clk 0:02:55]}  Bb7 {[%clk 0:03:00]} 9. a4 {[%clk 0:02:49]}  b4 {[%clk 0:02:59]} 10. Nd5 {[%clk 0:02:50]}  d6 {[%clk 0:02:59]} 11. a5 {[%clk 0:02:48]}  Nd4 {[%clk 0:02:58]} 12. Nxd4 {[%clk 0:02:23]}  exd4 {[%clk 0:02:59]} 13. Nxb4 {[%clk 0:02:14]}  c6 {[%clk 0:02:29]} 14. Ba4 {[%clk 0:01:58]}  Rc8 {[%clk 0:02:20]} 15. Bd2 {[%clk 0:01:54]}  c5 {[%clk 0:02:13]} 16. Na2 {[%clk 0:01:54]}  Nd7 {[%clk 0:01:57]} 17. Bb3 {[%clk 0:01:40]}  Ne5 {[%clk 0:01:56]} 18. f4 {[%clk 0:01:40]}  Nc6 {[%clk 0:01:55]} 19. Nc1 {[%clk 0:01:34]}  Kh8 {[%clk 0:01:54]} 20. f5 {[%clk 0:01:27]}  Ne5 {[%clk 0:01:52]} 21. Ne2 {[%clk 0:01:10]}  Bg5 {[%clk 0:01:48]} 22. Nf4 {[%clk 0:01:03]}  Bxf4 {[%clk 0:01:43]} 23. Bxf4 {[%clk 0:01:04]}  f6 {[%clk 0:01:43]} 24. Be6 {[%clk 0:00:48]}  Rc7 {[%clk 0:01:42]} 25. Qh5 {[%clk 0:00:39]}  Qe8 {[%clk 0:01:41]} 26. Qh4 {[%clk 0:00:39]}  Bc8 {[%clk 0:01:34]} 27. Bxe5 {[%clk 0:00:21]}  dxe5 {[%clk 0:01:32]} 28. Bc4 {[%clk 0:00:21]}  g5 {[%clk 0:01:16]} 29. fxg6 {[%clk 0:00:19]}  Qxg6 {[%clk 0:01:17]} 30. Rf3 {[%clk 0:00:17]}  f5 {[%clk 0:01:01]} 31. Rg3 {[%clk 0:00:13]}  Qd6 {[%clk 0:00:48]} 32. Rf1 {[%clk 0:00:12]}  f4 {[%clk 0:00:46]} 33. Rg5 {[%clk 0:00:12]}  Be6 {[%clk 0:00:40]} 34. Qh6 {[%clk 0:00:10]}  Re8 {[%clk 0:00:29]} 35. Bxe6 {[%clk 0:00:08]}  Qxe6 {[%clk 0:00:28]} 36. Qh5 {[%clk 0:00:08]}  Rg7 {[%clk 0:00:25]} 37. Rxg7 {[%clk 0:00:06]}  Kxg7 {[%clk 0:00:25]} 38. g3 {[%clk 0:00:06]}  Rf8 {[%clk 0:00:14]} 39. Qg5+ {[%clk 0:00:05]}  Qg6 {[%clk 0:00:13]} 40. gxf4 {[%clk 0:00:05]}  exf4 {[%clk 0:00:10]} 41. Qxg6+ {[%clk 0:00:05]}  Kxg6 {[%clk 0:00:10]} 42. Kg2 {[%clk 0:00:05]}  Kg5 {[%clk 0:00:11]} 43. Kf3 {[%clk 0:00:06]}  Rb8 {[%clk 0:00:08]} 44. Rg1+ {[%clk 0:00:06]}  Kf6 {[%clk 0:00:08]} 45. b3 {[%clk 0:00:06]}  c4 {[%clk 0:00:08]} 46. dxc4 {[%clk 0:00:05]}  Rd8 {[%clk 0:00:07]} 47. Kxf4 {[%clk 0:00:05]}  d3 {[%clk 0:00:08]} 48. cxd3 {[%clk 0:00:03]}  Rxd3 {[%clk 0:00:08]} 49. Rg3 {[%clk 0:00:04]}  Rd2 {[%clk 0:00:09]} 50. Re3 {[%clk 0:00:03]}  Rf2+ {[%clk 0:00:09]} 51. Kg3 {[%clk 0:00:03]}  Rf1 {[%clk 0:00:09]} 52. e5+ {[%clk 0:00:03]}  Ke6 {[%clk 0:00:09]} 53. c5 {[%clk 0:00:03]}  Rg1+ {[%clk 0:00:09]} 54. Kf2 {[%clk 0:00:03]}  Rc1 {[%clk 0:00:10]} 55. b4 {[%clk 0:00:03]}  Rc2+ {[%clk 0:00:11]} 56. Kg3 {[%clk 0:00:02]}  Rc4 {[%clk 0:00:12]} 57. Rb3 {[%clk 0:00:02]}  Rc1 {[%clk 0:00:11]} 58. b5 {[%clk 0:00:02]}  Rg1+ {[%clk 0:00:11]} 59. Kf2 {[%clk 0:00:02]}  Rg7 {[%clk 0:00:11]} 60. b6 {[%clk 0:00:02]}  Rf7+ {[%clk 0:00:12]} 61. Ke3 {[%clk 0:00:01]}  Kxe5 {[%clk 0:00:12]} 62. c6 {[%clk 0:00:01]}  Kd6 {[%clk 0:00:12]} 63. c7 {[%clk 0:00:01]}  Re7+ {[%clk 0:00:13]} 64. Kd4 {[%clk 0:00:01]}  Kc6 {[%clk 0:00:13]} 65. Rc3+ {[%clk 0:00:01]}  Kb7 {[%clk 0:00:12]} 66. c8=Q# {[%clk 0:00:02]} 1-0

[Event "December 5 Late 2023"]
[Site "https://www.chess.com"]
[Date "2023.12.05"]
[Round "11"]
[White "Mesa Cruz, Juan Carlos"]
[Black "Vanek, Tomas"]
[Result "0-1"]
[Board "88"]
[TimeControl "180+1"]
[WhiteFideId "6423400"]
[BlackFideId "313459"]
[WhiteElo "2366"]
[BlackElo "2198"]
[WhiteTeam "DOM"]
[BlackTeam "CZE"]
[WhiteClock "0:00:04"]
[BlackClock "0:00:18"]

1. e4 {[%clk 0:03:00]}  c5 {[%clk 0:02:57]} 2. Nf3 {[%clk 0:02:59]}  Nc6 {[%clk 0:02:57]} 3. Bb5 {[%clk 0:02:53]}  Nf6 {[%clk 0:02:56]} 4. e5 {[%clk 0:02:51]}  Ng4 {[%clk 0:02:55]} 5. Qe2 {[%clk 0:02:49]}  Qc7 {[%clk 0:02:54]} 6. Bxc6 {[%clk 0:02:44]}  dxc6 {[%clk 0:02:54]} 7. d3 {[%clk 0:02:44]}  g6 {[%clk 0:02:45]} 8. Bf4 {[%clk 0:02:28]}  h5 {[%clk 0:02:25]} 9. a4 {[%clk 0:02:21]}  Be6 {[%clk 0:02:07]} 10. Nbd2 {[%clk 0:02:14]}  Nh6 {[%clk 0:02:04]} 11. Ng5 {[%clk 0:02:11]}  O-O-O {[%clk 0:01:59]} 12. Nxe6 {[%clk 0:02:06]}  fxe6 {[%clk 0:01:59]} 13. Ne4 {[%clk 0:01:52]}  Nf5 {[%clk 0:01:58]} 14. Nxc5 {[%clk 0:01:44]}  Nd4 {[%clk 0:01:55]} 15. Qd2 {[%clk 0:01:32]}  b6 {[%clk 0:01:49]} 16. Ne4 {[%clk 0:01:04]}  h4 {[%clk 0:01:48]} 17. h3 {[%clk 0:00:57]}  Rh5 {[%clk 0:01:46]} 18. a5 {[%clk 0:00:53]}  b5 {[%clk 0:01:37]} 19. O-O {[%clk 0:00:38]}  Bg7 {[%clk 0:01:31]} 20. Nc5 {[%clk 0:00:28]}  Bxe5 {[%clk 0:01:16]} 21. Bxe5 {[%clk 0:00:17]}  Rxe5 {[%clk 0:01:16]} 22. Ne4 {[%clk 0:00:09]}  Rxe4 {[%clk 0:01:16]} 23. Rae1 {[%clk 0:00:04]}  Rxe1 {[%clk 0:01:11]} 24. Rxe1 {[%clk 0:00:05]}  Qd6 {[%clk 0:01:09]} 25. c3 {[%clk 0:00:05]}  Nf5 {[%clk 0:01:08]} 26. d4 {[%clk 0:00:05]}  e5 {[%clk 0:01:04]} 27. Qg5 {[%clk 0:00:02]}  exd4 {[%clk 0:01:01]} 28. cxd4 {[%clk 0:00:03]}  Qf6 {[%clk 0:00:52]} 29. Qf4 {[%clk 0:00:01]}  Rxd4 {[%clk 0:00:49]} 30. Qf3 {[%clk 0:00:02]}  Qd6 {[%clk 0:00:47]} 31. Rc1 {[%clk 0:00:01]}  Kb7 {[%clk 0:00:44]} 32. Qe2 {[%clk 0:00:02]}  Rd2 {[%clk 0:00:34]} 33. a6+ {[%clk 0:00:02]}  Kb6 {[%clk 0:00:31]} 34. Qg4 {[%clk 0:00:03]}  Rd4 {[%clk 0:00:27]} 35. Qg5 {[%clk 0:00:03]}  Rd1+ {[%clk 0:00:24]} 36. Rxd1 {[%clk 0:00:02]}  Qxd1+ {[%clk 0:00:24]} 37. Kh2 {[%clk 0:00:03]}  Qd6+ {[%clk 0:00:23]} 38. Kg1 {[%clk 0:00:02]}  Kxa6 {[%clk 0:00:23]} 39. Qc1 {[%clk 0:00:02]}  Kb6 {[%clk 0:00:23]} 40. Qa1 {[%clk 0:00:02]}  a5 {[%clk 0:00:23]} 41. Qe1 {[%clk 0:00:02]}  Qc5 {[%clk 0:00:22]} 42. Qe6 {[%clk 0:00:02]}  Nd4 {[%clk 0:00:21]} 43. Qe4 {[%clk 0:00:02]}  Nb3 {[%clk 0:00:20]} 44. g4 {[%clk 0:00:02]}  Nd2 {[%clk 0:00:20]} 45. Qxg6 {[%clk 0:00:02]}  Qc1+ {[%clk 0:00:19]} 46. Kg2 {[%clk 0:00:03]}  Qf1+ {[%clk 0:00:18]} 47. Kh2 {[%clk 0:00:03]}  Qxf2+ {[%clk 0:00:18]} 48. Kh1 {[%clk 0:00:04]}  Qf1+ {[%clk 0:00:18]} 49. Kh2 {[%clk 0:00:04]}  Nf3# {[%clk 0:00:18]} 0-1

[Event "December 5 Late 2023"]
[Site "https://www.chess.com"]
[Date "2023.12.05"]
[Round "11"]
[White "Vila Dupla, Aurelio"]
[Black "Gutkin, Ilya"]
[Result "0-1"]
[Board "91"]
[TimeControl "180+1"]
[WhiteFideId "2203383"]
[BlackFideId "16203470"]
[WhiteElo "2211"]
[BlackElo "2359"]
[WhiteTeam "ESP"]
[BlackTeam "GER"]
[WhiteClock "0:00:00"]
[BlackClock "0:00:21"]

1. Nf3 {[%clk 0:03:00]}  d5 {[%clk 0:02:57]} 2. d4 {[%clk 0:03:00]}  g6 {[%clk 0:02:57]} 3. g3 {[%clk 0:02:57]}  Bg7 {[%clk 0:02:58]} 4. Bg2 {[%clk 0:02:58]}  Nh6 {[%clk 0:02:58]} 5. O-O {[%clk 0:02:59]}  O-O {[%clk 0:02:58]} 6. c3 {[%clk 0:02:28]}  Nf5 {[%clk 0:02:57]} 7. Qb3 {[%clk 0:02:26]}  c6 {[%clk 0:02:55]} 8. Nbd2 {[%clk 0:02:23]}  Qb6 {[%clk 0:02:54]} 9. e4 {[%clk 0:02:22]}  dxe4 {[%clk 0:02:52]} 10. Nxe4 {[%clk 0:02:23]}  Be6 {[%clk 0:02:51]} 11. Qc2 {[%clk 0:02:19]}  Nd7 {[%clk 0:02:42]} 12. Bg5 {[%clk 0:02:16]}  Rfe8 {[%clk 0:02:36]} 13. Rfe1 {[%clk 0:01:45]}  Rac8 {[%clk 0:02:31]} 14. b4 {[%clk 0:01:36]}  Bd5 {[%clk 0:02:10]} 15. Nfd2 {[%clk 0:01:31]}  Nf6 {[%clk 0:02:08]} 16. Nxf6+ {[%clk 0:01:29]}  exf6 {[%clk 0:02:07]} 17. Bf4 {[%clk 0:01:24]}  Bxg2 {[%clk 0:02:06]} 18. Kxg2 {[%clk 0:01:24]}  Qb5 {[%clk 0:02:01]} 19. a3 {[%clk 0:01:20]}  Qd5+ {[%clk 0:01:58]} 20. Kg1 {[%clk 0:01:16]}  b5 {[%clk 0:01:51]} 21. a4 {[%clk 0:01:09]}  h5 {[%clk 0:01:45]} 22. Ne4 {[%clk 0:01:01]}  h4 {[%clk 0:01:37]} 23. g4 {[%clk 0:00:48]}  h3 {[%clk 0:01:27]} 24. gxf5 {[%clk 0:00:29]}  gxf5 {[%clk 0:01:28]} 25. f3 {[%clk 0:00:29]}  fxe4 {[%clk 0:01:29]} 26. Rxe4 {[%clk 0:00:24]}  f5 {[%clk 0:01:24]} 27. Rxe8+ {[%clk 0:00:12]}  Rxe8 {[%clk 0:01:25]} 28. Qd3 {[%clk 0:00:12]}  Re6 {[%clk 0:01:24]} 29. axb5 {[%clk 0:00:05]}  cxb5 {[%clk 0:01:19]} 30. Rxa7 {[%clk 0:00:05]}  Rg6+ {[%clk 0:01:19]} 31. Kf1 {[%clk 0:00:03]}  Rg2 {[%clk 0:01:02]} 32. Ra5 {[%clk 0:00:02]}  Qb3 {[%clk 0:00:58]} 33. Ra8+ {[%clk 0:00:02]}  Bf8 {[%clk 0:00:54]} 34. Bd6 {[%clk 0:00:02]}  Qb2 {[%clk 0:00:49]} 35. Rxf8+ {[%clk 0:00:02]}  Kg7 {[%clk 0:00:49]} 36. Rxf7+ {[%clk 0:00:02]}  Kxf7 {[%clk 0:00:21]} 37. Qxf5+ {[%clk 0:00:02]}  Kg8 {[%clk 0:00:22]} 38. Qg6+ {[%clk 0:00:00]}  Rxg6 {[%clk 0:00:21]} 0-1

[Event "December 5 Late 2023"]
[Site "https://www.chess.com"]
[Date "2023.12.05"]
[Round "11"]
[White "Petersson, Kjell"]
[Black "JERO-8914"]
[Result "0-1"]
[Board "96"]
[TimeControl "180+1"]
[WhiteFideId "1705148"]
[WhiteElo "2163"]
[BlackElo "2355"]
[WhiteTeam "SWE"]
[WhiteClock "0:00:34"]
[BlackClock "0:01:14"]

1. d4 {[%clk 0:03:00]}  d6 {[%clk 0:02:59]} 2. Bf4 {[%clk 0:03:00]}  Nf6 {[%clk 0:02:58]} 3. Nc3 {[%clk 0:02:58]}  g6 {[%clk 0:02:59]} 4. e4 {[%clk 0:02:58]}  Bg7 {[%clk 0:03:00]} 5. Qd2 {[%clk 0:02:58]}  h6 {[%clk 0:02:57]} 6. O-O-O {[%clk 0:02:57]}  c6 {[%clk 0:02:58]} 7. f3 {[%clk 0:02:52]}  Qa5 {[%clk 0:02:56]} 8. Kb1 {[%clk 0:02:48]}  b5 {[%clk 0:02:55]} 9. h4 {[%clk 0:02:37]}  Nbd7 {[%clk 0:02:53]} 10. g4 {[%clk 0:02:22]}  Nb6 {[%clk 0:02:43]} 11. Nh3 {[%clk 0:02:11]}  Nc4 {[%clk 0:02:40]} 12. Qc1 {[%clk 0:01:56]}  Qb6 {[%clk 0:02:19]} 13. g5 {[%clk 0:01:50]}  hxg5 {[%clk 0:02:13]} 14. hxg5 {[%clk 0:01:37]}  Nh5 {[%clk 0:02:11]} 15. Bg2 {[%clk 0:01:30]}  b4 {[%clk 0:02:06]} 16. Ne2 {[%clk 0:01:26]}  a5 {[%clk 0:01:59]} 17. e5 {[%clk 0:01:15]}  d5 {[%clk 0:01:55]} 18. Bd2 {[%clk 0:00:59]}  a4 {[%clk 0:01:47]} 19. f4 {[%clk 0:00:54]}  b3 {[%clk 0:01:30]} 20. cxb3 {[%clk 0:00:53]}  Bf5+ {[%clk 0:01:28]} 21. Ka1 {[%clk 0:00:49]}  axb3 {[%clk 0:01:28]} 22. a3 {[%clk 0:00:50]}  Rxa3+ {[%clk 0:01:17]} 23. bxa3 {[%clk 0:00:47]}  b2+ {[%clk 0:01:17]} 24. Ka2 {[%clk 0:00:41]}  bxc1=Q {[%clk 0:01:15]} 25. Bxc1 {[%clk 0:00:34]}  Qb1# {[%clk 0:01:14]} 0-1

[Event "December 5 Late 2023"]
[Site "https://www.chess.com"]
[Date "2023.12.05"]
[Round "11"]
[White "Cooper, Aaron"]
[Black "Joubert, Dantelle"]
[Result "1-0"]
[Board "97"]
[TimeControl "180+1"]
[WhiteFideId "2634945"]
[BlackFideId "14310813"]
[WhiteElo "2294"]
[BlackElo "2150"]
[WhiteTeam "CAN"]
[BlackTeam "RSA"]
[WhiteClock "0:01:57"]
[BlackClock "0:00:00"]

1. d4 {[%clk 0:03:00]}  d5 {[%clk 0:02:59]} 2. Bf4 {[%clk 0:03:00]}  c5 {[%clk 0:02:54]} 3. c3 {[%clk 0:02:57]}  Nc6 {[%clk 0:02:53]} 4. e3 {[%clk 0:02:56]}  Qb6 {[%clk 0:02:51]} 5. Qb3 {[%clk 0:02:54]}  Nf6 {[%clk 0:02:48]} 6. Nd2 {[%clk 0:02:38]}  c4 {[%clk 0:02:44]} 7. Qc2 {[%clk 0:02:36]}  Bg4 {[%clk 0:02:38]} 8. Ngf3 {[%clk 0:02:33]}  e6 {[%clk 0:02:35]} 9. b3 {[%clk 0:02:30]}  cxb3 {[%clk 0:02:33]} 10. axb3 {[%clk 0:02:29]}  Be7 {[%clk 0:02:29]} 11. Bd3 {[%clk 0:02:24]}  Rc8 {[%clk 0:02:27]} 12. Qb1 {[%clk 0:02:20]}  O-O {[%clk 0:02:18]} 13. O-O {[%clk 0:02:07]}  a6 {[%clk 0:01:59]} 14. Rc1 {[%clk 0:02:06]}  h6 {[%clk 0:00:00]} 15. Ne5 {[%clk 0:01:57]} 1-0

[Event "December 5 Late 2023"]
[Site "https://www.chess.com"]
[Date "2023.12.05"]
[Round "11"]
[White "Einarsson, Halldor Gretar"]
[Black "Negron Lizarazo, Juan Sebastian"]
[Result "0-1"]
[Board "100"]
[TimeControl "180+1"]
[WhiteFideId "2300150"]
[BlackFideId "3936910"]
[WhiteElo "2200"]
[BlackElo "2104"]
[WhiteTeam "ISL"]
[BlackTeam "COL"]
[WhiteClock "0:00:00"]
[BlackClock "0:00:12"]

1. d4 {[%clk 0:02:58]}  Nf6 {[%clk 0:02:56]} 2. c4 {[%clk 0:02:58]}  g6 {[%clk 0:02:51]} 3. f3 {[%clk 0:02:57]}  c6 {[%clk 0:02:44]} 4. e4 {[%clk 0:02:53]}  d5 {[%clk 0:02:31]} 5. Nc3 {[%clk 0:02:39]}  dxc4 {[%clk 0:02:24]} 6. Bxc4 {[%clk 0:02:38]}  b5 {[%clk 0:02:22]} 7. Bb3 {[%clk 0:02:31]}  Bg7 {[%clk 0:02:17]} 8. Be3 {[%clk 0:02:30]}  O-O {[%clk 0:02:10]} 9. Nge2 {[%clk 0:02:29]}  Bb7 {[%clk 0:02:00]} 10. O-O {[%clk 0:02:26]}  Nbd7 {[%clk 0:01:57]} 11. a4 {[%clk 0:02:21]}  a6 {[%clk 0:01:45]} 12. Qd2 {[%clk 0:02:14]}  Rc8 {[%clk 0:01:39]} 13. Rfd1 {[%clk 0:02:12]}  Qb6 {[%clk 0:01:21]} 14. a5 {[%clk 0:01:31]}  Qa7 {[%clk 0:01:13]} 15. Ba2 {[%clk 0:00:57]}  Rfd8 {[%clk 0:01:01]} 16. Qe1 {[%clk 0:00:42]}  e5 {[%clk 0:00:48]} 17. Qf2 {[%clk 0:00:38]}  exd4 {[%clk 0:00:44]} 18. Nxd4 {[%clk 0:00:20]}  Qb8 {[%clk 0:00:37]} 19. h3 {[%clk 0:00:08]}  Nh5 {[%clk 0:00:30]} 20. Nde2 {[%clk 0:00:08]}  Ne5 {[%clk 0:00:23]} 21. g4 {[%clk 0:00:08]}  Nf6 {[%clk 0:00:20]} 22. Bf4 {[%clk 0:00:08]}  Nfd7 {[%clk 0:00:18]} 23. Qg3 {[%clk 0:00:07]}  Qa7+ {[%clk 0:00:18]} 24. Kh2 {[%clk 0:00:06]}  h6 {[%clk 0:00:16]} 25. Rd6 {[%clk 0:00:05]}  g5 {[%clk 0:00:15]} 26. Bc1 {[%clk 0:00:04]}  Bf8 {[%clk 0:00:14]} 27. Rd1 {[%clk 0:00:03]}  Nc5 {[%clk 0:00:13]} 28. Nd4 {[%clk 0:00:03]}  Bg7 {[%clk 0:00:12]} 29. Be3 {[%clk 0:00:03]}  Ncd3 {[%clk 0:00:12]} 30. Nf5 {[%clk 0:00:01]}  Nxb2 {[%clk 0:00:12]} 31. Bxa7 {[%clk 0:00:00]}  Nxd1 {[%clk 0:00:12]} 0-1

[Event "December 5 Late 2023"]
[Site "https://www.chess.com"]
[Date "2023.12.05"]
[Round "11"]
[White "Dmitriev, Sergey"]
[Black "Duncan, Chris R"]
[Result "1-0"]
[Board "101"]
[TimeControl "180+1"]
[WhiteFideId "14101785"]
[BlackFideId "403091"]
[WhiteElo "1999"]
[BlackElo "2178"]
[WhiteTeam "UKR"]
[BlackTeam "ENG"]
[WhiteClock "0:00:08"]
[BlackClock "0:00:02"]

1. e4 {[%clk 0:03:00]}  e6 {[%clk 0:02:45]} 2. Nf3 {[%clk 0:02:59]}  d5 {[%clk 0:02:46]} 3. exd5 {[%clk 0:02:54]}  exd5 {[%clk 0:02:46]} 4. d4 {[%clk 0:02:54]}  c6 {[%clk 0:02:42]} 5. Bd3 {[%clk 0:02:53]}  Bg4 {[%clk 0:02:41]} 6. h3 {[%clk 0:02:50]}  Bh5 {[%clk 0:02:41]} 7. O-O {[%clk 0:02:50]}  Qc7 {[%clk 0:02:41]} 8. Re1+ {[%clk 0:02:47]}  Ne7 {[%clk 0:02:06]} 9. Bg5 {[%clk 0:02:47]}  h6 {[%clk 0:02:03]} 10. Bh4 {[%clk 0:02:46]}  Nd7 {[%clk 0:01:57]} 11. Bg3 {[%clk 0:02:43]}  Qd8 {[%clk 0:01:54]} 12. Nbd2 {[%clk 0:02:36]}  Qb6 {[%clk 0:01:44]} 13. Qe2 {[%clk 0:02:29]}  O-O-O {[%clk 0:01:42]} 14. b3 {[%clk 0:02:10]}  f5 {[%clk 0:01:24]} 15. Qe6 {[%clk 0:01:54]}  c5 {[%clk 0:01:03]} 16. dxc5 {[%clk 0:01:42]}  Qxe6 {[%clk 0:01:01]} 17. Rxe6 {[%clk 0:01:41]}  Nxc5 {[%clk 0:01:01]} 18. Ree1 {[%clk 0:01:30]}  Ne4 {[%clk 0:00:54]} 19. Rad1 {[%clk 0:01:09]}  g5 {[%clk 0:00:33]} 20. Be5 {[%clk 0:01:06]}  Rg8 {[%clk 0:00:33]} 21. Nxe4 {[%clk 0:00:52]}  dxe4 {[%clk 0:00:30]} 22. Bc4 {[%clk 0:00:51]}  Rxd1 {[%clk 0:00:22]} 23. Be6+ {[%clk 0:00:47]}  Rd7 {[%clk 0:00:18]} 24. Bxg8 {[%clk 0:00:45]}  Nxg8 {[%clk 0:00:09]} 25. Nd4 {[%clk 0:00:43]}  Bc5 {[%clk 0:00:09]} 26. Nxf5 {[%clk 0:00:42]}  Ne7 {[%clk 0:00:06]} 27. Nxh6 {[%clk 0:00:40]}  Ng6 {[%clk 0:00:05]} 28. Bc3 {[%clk 0:00:38]}  e3 {[%clk 0:00:05]} 29. fxe3 {[%clk 0:00:36]}  Re7 {[%clk 0:00:06]} 30. Nf5 {[%clk 0:00:34]}  Re6 {[%clk 0:00:05]} 31. Ng3 {[%clk 0:00:33]}  Bf3 {[%clk 0:00:02]} 32. gxf3 {[%clk 0:00:32]}  Rxe3 {[%clk 0:00:02]} 33. Rxe3 {[%clk 0:00:30]}  Bxe3+ {[%clk 0:00:03]} 34. Kg2 {[%clk 0:00:30]}  Nf4+ {[%clk 0:00:04]} 35. Kh2 {[%clk 0:00:28]}  Bf2 {[%clk 0:00:04]} 36. Ne4 {[%clk 0:00:28]}  Be3 {[%clk 0:00:04]} 37. Bf6 {[%clk 0:00:23]}  Nd5 {[%clk 0:00:03]} 38. Bxg5 {[%clk 0:00:22]}  Bd4 {[%clk 0:00:04]} 39. Bd2 {[%clk 0:00:20]}  Kd7 {[%clk 0:00:04]} 40. c4 {[%clk 0:00:19]}  Nc7 {[%clk 0:00:03]} 41. Ng5 {[%clk 0:00:15]}  Ke7 {[%clk 0:00:02]} 42. Ne4 {[%clk 0:00:14]}  Ke6 {[%clk 0:00:02]} 43. Bf4 {[%clk 0:00:14]}  Ne8 {[%clk 0:00:01]} 44. Ng5+ {[%clk 0:00:12]}  Kf5 {[%clk 0:00:02]} 45. Kg3 {[%clk 0:00:11]}  Be5 {[%clk 0:00:01]} 46. Bxe5 {[%clk 0:00:10]}  Kxg5 {[%clk 0:00:02]} 47. Bb8 {[%clk 0:00:09]}  Nf6 {[%clk 0:00:02]} 48. Bxa7 {[%clk 0:00:09]}  Nh5+ {[%clk 0:00:02]} 49. Kf2 {[%clk 0:00:08]}  Kf4 {[%clk 0:00:02]} 50. Be3+ {[%clk 0:00:08]}  Kf5 {[%clk 0:00:03]} 51. Bd4 {[%clk 0:00:08]}  Nf6 {[%clk 0:00:04]} 52. Bxf6 {[%clk 0:00:07]}  Kxf6 {[%clk 0:00:04]} 53. Kg3 {[%clk 0:00:07]}  Kf5 {[%clk 0:00:05]} 54. Kh4 {[%clk 0:00:08]}  Kg6 {[%clk 0:00:05]} 55. Kg4 {[%clk 0:00:08]}  Kf6 {[%clk 0:00:02]} 56. h4 {[%clk 0:00:08]} 1-0